[Event "Betsys MČR v online bleskovém šachu 2021"]
[Site "Chess.com"]
[Date "2021.04.17"]
[Round "3"]
[White "valid88"]
[Black "Tassa15"]
[Result "1-0"]
[WhiteElo "1342"]
[BlackElo "846"]
[TimeControl "180+1"]
[EndTime "9:27:37 PDT"]
[Termination "Uživatel valid88 zvítězil po vzdání soupeře"]

1. d4 {[%clk 0:03:00.9]} 1... d5 {[%clk 0:02:57.9]} 2. c4 {[%clk 0:03:01]} 2...
e5 {[%clk 0:02:57.2]} 3. dxe5 {[%clk 0:02:59.6]} 3... d4 {[%clk 0:02:56.7]} 4.
Nf3 {[%clk 0:02:52.4]} 4... Nc6 {[%clk 0:02:56.3]} 5. b3 {[%clk 0:02:43.9]} 5...
Bf5 {[%clk 0:02:54.1]} 6. a3 {[%clk 0:02:38.9]} 6... Nge7 {[%clk 0:02:51.3]} 7.
Bb2 {[%clk 0:02:38.5]} 7... d3 {[%clk 0:02:37]} 8. exd3 {[%clk 0:02:36.9]} 8...
Ng6 {[%clk 0:02:31.3]} 9. d4 {[%clk 0:02:33.4]} 9... Be7 {[%clk 0:02:24.6]} 10.
Bd3 {[%clk 0:02:31.8]} 10... Bxd3 {[%clk 0:02:20.8]} 11. Qxd3 {[%clk 0:02:31.4]}
11... Nf4 {[%clk 0:02:20.2]} 12. Qf1 {[%clk 0:02:14.3]} 12... Bg5 {[%clk
0:02:13.1]} 13. Nxg5 {[%clk 0:02:07.5]} 13... h6 {[%clk 0:02:07.4]} 14. Nf3
{[%clk 0:02:04.7]} 14... O-O {[%clk 0:02:05.2]} 15. g3 {[%clk 0:02:01]} 15...
Ne6 {[%clk 0:02:02.2]} 16. d5 {[%clk 0:01:57.9]} 16... Ng5 {[%clk 0:01:52.4]}
17. dxc6 {[%clk 0:01:45.9]} 17... Nxf3+ {[%clk 0:01:51.1]} 18. Ke2 {[%clk
0:01:44.3]} 18... Nxe5 {[%clk 0:01:35.7]} 19. Bxe5 {[%clk 0:01:35.3]} 19... Qe7
{[%clk 0:01:33.7]} 20. Kf3 {[%clk 0:01:01.7]} 20... Qxe5 {[%clk 0:01:32.8]} 21.
Nd2 {[%clk 0:01:00]} 21... Qc3+ {[%clk 0:01:26.7]} 22. Kg2 {[%clk 0:00:55.4]}
22... Qxd2 {[%clk 0:01:19.7]} 23. cxb7 {[%clk 0:00:54.3]} 23... Rab8 {[%clk
0:01:18.8]} 24. Qe1 {[%clk 0:00:51.9]} 24... Qxe1 {[%clk 0:01:05.3]} 25. Rhxe1
{[%clk 0:00:51]} 25... Rxb7 {[%clk 0:01:05.2]} 26. b4 {[%clk 0:00:51.9]} 26...
Rbb8 {[%clk 0:01:03]} 27. Re7 {[%clk 0:00:49.1]} 27... Rbc8 {[%clk 0:01:01.8]}
28. Rae1 {[%clk 0:00:48.7]} 28... Rfd8 {[%clk 0:01:00.2]} 29. R1e2 {[%clk
0:00:45.1]} 29... Kh7 {[%clk 0:00:59.4]} 30. Rxf7 {[%clk 0:00:42.9]} 30... Rd4
{[%clk 0:00:58.3]} 31. c5 {[%clk 0:00:40.7]} 31... Rd3 {[%clk 0:00:58]} 32. Rf3
{[%clk 0:00:40.3]} 32... Rd5 {[%clk 0:00:55]} 33. Re7 {[%clk 0:00:34.4]} 33...
a6 {[%clk 0:00:52.1]} 34. Rff7 {[%clk 0:00:33]} 34... Rd3 {[%clk 0:00:50.6]} 35.
Rxg7+ {[%clk 0:00:32.8]} 35... Kh8 {[%clk 0:00:47.3]} 36. Rh7+ {[%clk
0:00:32.8]} 36... Kg8 {[%clk 0:00:45.2]} 37. Reg7+ {[%clk 0:00:31.8]} 37... Kf8
{[%clk 0:00:45]} 38. Rf7+ {[%clk 0:00:30.9]} 38... Ke8 {[%clk 0:00:43.5]} 39.
Rf3 {[%clk 0:00:21]} 39... Rxf3 {[%clk 0:00:41.8]} 40. Kxf3 {[%clk 0:00:21]}
40... Kf8 {[%clk 0:00:39.5]} 41. Rxh6 {[%clk 0:00:21.5]} 41... Kg7 {[%clk
0:00:38.6]} 42. Rxa6 {[%clk 0:00:21.7]} 42... Rf8+ {[%clk 0:00:37.6]} 43. Kg2
{[%clk 0:00:22.1]} 43... Rb8 {[%clk 0:00:35.6]} 44. Ra7 {[%clk 0:00:22.1]} 44...
Rc8 {[%clk 0:00:34.2]} 45. c6 {[%clk 0:00:20.4]} 45... Kf7 {[%clk 0:00:33.1]}
46. b5 {[%clk 0:00:20.7]} 46... Ke7 {[%clk 0:00:27]} 47. a4 {[%clk 0:00:20.5]}
47... Kd6 {[%clk 0:00:26.5]} 48. a5 {[%clk 0:00:20.4]} 48... Kc5 {[%clk
0:00:25.4]} 49. Rb7 {[%clk 0:00:20.3]} 49... Kd6 {[%clk 0:00:23.1]} 50. a6
{[%clk 0:00:20.5]} 50... Kc5 {[%clk 0:00:21.9]} 51. a7 {[%clk 0:00:20.7]} 51...
Kd6 {[%clk 0:00:19.4]} 52. Rb8 {[%clk 0:00:21]} 52... Rxb8 {[%clk 0:00:13.7]}
53. axb8=Q {[%clk 0:00:20.8]} 53... Kc5 {[%clk 0:00:13.7]} 54. Qa7+ {[%clk
0:00:21]} 1-0

[Event "Betsys MČR v online bleskovém šachu 2021"]
[Site "Chess.com"]
[Date "2021.04.17"]
[Round "3"]
[White "AdeeJa"]
[Black "VeceraP1973"]
[Result "0-1"]
[WhiteElo "1526"]
[BlackElo "1914"]
[TimeControl "180+1"]
[EndTime "9:27:38 PDT"]
[Termination "Uživatel VeceraP1973 zvítězil na čas"]

1. e4 {[%clk 0:03:00.9]} 1... c5 {[%clk 0:02:59.3]} 2. Nc3 {[%clk 0:02:59]} 2...
Nc6 {[%clk 0:02:59]} 3. Bb5 {[%clk 0:02:59]} 3... e6 {[%clk 0:02:57.4]} 4. Bxc6
{[%clk 0:02:58]} 4... bxc6 {[%clk 0:02:56.6]} 5. d3 {[%clk 0:02:58.5]} 5... Ne7
{[%clk 0:02:54.9]} 6. f4 {[%clk 0:02:57.6]} 6... d5 {[%clk 0:02:52.4]} 7. Nf3
{[%clk 0:02:54.5]} 7... Ba6 {[%clk 0:02:49.9]} 8. b3 {[%clk 0:02:49.6]} 8... Ng6
{[%clk 0:02:41.6]} 9. O-O {[%clk 0:02:47.9]} 9... Be7 {[%clk 0:02:30]} 10. f5
{[%clk 0:02:46.9]} 10... Nf8 {[%clk 0:02:27.4]} 11. fxe6 {[%clk 0:02:44.3]}
11... Nxe6 {[%clk 0:02:25.8]} 12. Ne5 {[%clk 0:02:39.5]} 12... Bf6 {[%clk
0:02:12.5]} 13. Nxf7 {[%clk 0:02:17.8]} 13... Kxf7 {[%clk 0:02:08.3]} 14. e5
{[%clk 0:02:17.6]} 14... Rf8 {[%clk 0:01:42.4]} 15. exf6 {[%clk 0:02:15.7]}
15... g6 {[%clk 0:01:41.7]} 16. Qg4 {[%clk 0:02:05.8]} 16... Qd6 {[%clk
0:01:27.3]} 17. Qh3 {[%clk 0:01:52.7]} 17... Kg8 {[%clk 0:01:18.4]} 18. Bh6
{[%clk 0:01:45.8]} 18... Rf7 {[%clk 0:01:17.4]} 19. Rae1 {[%clk 0:01:43.3]}
19... Re8 {[%clk 0:01:15.3]} 20. Bf4 {[%clk 0:01:24.1]} 20... Qd7 {[%clk
0:01:09.5]} 21. Bh6 {[%clk 0:01:02.8]} 21... Bc8 {[%clk 0:01:08.9]} 22. Re5
{[%clk 0:00:58.8]} 22... Nd4 {[%clk 0:00:58]} 23. Rxe8+ {[%clk 0:00:50.6]} 23...
Qxe8 {[%clk 0:00:57.5]} 24. Qh4 {[%clk 0:00:35.5]} 24... Bd7 {[%clk 0:00:38.7]}
25. Re1 {[%clk 0:00:34.9]} 25... Qd8 {[%clk 0:00:37.8]} 26. Bg7 {[%clk
0:00:29.4]} 26... Ne6 {[%clk 0:00:35.4]} 27. Bh6 {[%clk 0:00:14.7]} 27... Qxf6
{[%clk 0:00:33.7]} 28. Qg3 {[%clk 0:00:13.9]} 28... Qd8 {[%clk 0:00:26.4]} 29.
Na4 {[%clk 0:00:08.8]} 29... Ng7 {[%clk 0:00:24.6]} 30. Bg5 {[%clk 0:00:07.8]}
30... Nf5 {[%clk 0:00:21.9]} 31. Bxd8 {[%clk 0:00:06.4]} 31... Nxg3 {[%clk
0:00:21.9]} 32. hxg3 {[%clk 0:00:06.4]} 32... Bf5 {[%clk 0:00:21.5]} 33. Bg5
{[%clk 0:00:06]} 33... Kg7 {[%clk 0:00:21.4]} 34. Nxc5 {[%clk 0:00:06.1]} 34...
h6 {[%clk 0:00:21.3]} 35. Bf4 {[%clk 0:00:05.1]} 35... g5 {[%clk 0:00:21.5]} 36.
Be5+ {[%clk 0:00:04.7]} 36... Kg6 {[%clk 0:00:21.8]} 37. Bd4 {[%clk 0:00:04.2]}
37... Bc8 {[%clk 0:00:21.3]} 38. Ne6 {[%clk 0:00:03.8]} 38... Bxe6 {[%clk
0:00:20.3]} 39. Rxe6+ {[%clk 0:00:03.1]} 39... Kf5 {[%clk 0:00:20.4]} 40. Rxh6
{[%clk 0:00:02.3]} 40... Re7 {[%clk 0:00:19.7]} 41. Rxc6 {[%clk 0:00:02.3]}
41... g4 {[%clk 0:00:18.9]} 42. Rf6+ {[%clk 0:00:02.1]} 42... Kg5 {[%clk
0:00:18.7]} 43. Ra6 {[%clk 0:00:01.8]} 43... Re1+ {[%clk 0:00:17.9]} 44. Kf2
{[%clk 0:00:01.8]} 44... Rc1 {[%clk 0:00:18.8]} 45. Rxa7 {[%clk 0:00:01.7]}
45... Rxc2+ {[%clk 0:00:18.8]} 46. Ke3 {[%clk 0:00:01.1]} 46... Kf5 {[%clk
0:00:18.8]} 0-1

[Event "Betsys MČR v online bleskovém šachu 2021"]
[Site "Chess.com"]
[Date "2021.04.17"]
[Round "3"]
[White "Kokos3"]
[Black "Jaja15F"]
[Result "1-0"]
[WhiteElo "1492"]
[BlackElo "1107"]
[TimeControl "180+1"]
[EndTime "9:27:38 PDT"]
[Termination "Uživatel Kokos3 zvítězil na čas"]

1. e4 {[%clk 0:03:00.9]} 1... Nc6 {[%clk 0:02:56.4]} 2. d4 {[%clk 0:02:59]} 2...
d5 {[%clk 0:02:53.7]} 3. e5 {[%clk 0:02:53.1]} 3... Bf5 {[%clk 0:02:45.6]} 4. c3
{[%clk 0:02:50.8]} 4... e6 {[%clk 0:02:42.3]} 5. Nf3 {[%clk 0:02:35.9]} 5... f6
{[%clk 0:02:42]} 6. exf6 {[%clk 0:02:31.5]} 6... Nxf6 {[%clk 0:02:41.2]} 7. h3
{[%clk 0:02:23.7]} 7... Bd6 {[%clk 0:02:38.7]} 8. Bg5 {[%clk 0:02:18.3]} 8...
O-O {[%clk 0:02:36.8]} 9. Be2 {[%clk 0:02:14.3]} 9... h6 {[%clk 0:02:36]} 10.
Bh4 {[%clk 0:02:09.5]} 10... Be7 {[%clk 0:02:32.3]} 11. O-O {[%clk 0:02:06.6]}
11... Ne4 {[%clk 0:02:16.9]} 12. Nbd2 {[%clk 0:02:00.6]} 12... Bxh4 {[%clk
0:02:14.7]} 13. Nxh4 {[%clk 0:01:52.6]} 13... Qxh4 {[%clk 0:02:13.4]} 14. Nf3
{[%clk 0:01:52.2]} 14... Qd8 {[%clk 0:02:09]} 15. Qb3 {[%clk 0:01:51.4]} 15...
Rb8 {[%clk 0:02:06.9]} 16. Rfe1 {[%clk 0:01:43.9]} 16... Qe7 {[%clk 0:02:01.8]}
17. Bb5 {[%clk 0:01:40.9]} 17... Qd6 {[%clk 0:02:00]} 18. Qa4 {[%clk 0:01:35.7]}
18... a6 {[%clk 0:01:58.7]} 19. Bf1 {[%clk 0:01:34.6]} 19... b5 {[%clk
0:01:56.2]} 20. Qxa6 {[%clk 0:01:25.2]} 20... Rb6 {[%clk 0:01:53.4]} 21. Qa3
{[%clk 0:01:17]} 21... b4 {[%clk 0:01:49.9]} 22. Qa4 {[%clk 0:01:08.7]} 22...
bxc3 {[%clk 0:01:42.1]} 23. bxc3 {[%clk 0:01:06.7]} 23... Rfb8 {[%clk
0:01:34.5]} 24. c4 {[%clk 0:00:56.2]} 24... Rb4 {[%clk 0:01:29.2]} 25. Qd1
{[%clk 0:00:50.7]} 25... dxc4 {[%clk 0:01:23.6]} 26. Nh4 {[%clk 0:00:47.7]}
26... c3 {[%clk 0:01:14.6]} 27. Nxf5 {[%clk 0:00:45.5]} 27... exf5 {[%clk
0:01:13.9]} 28. d5 {[%clk 0:00:40.5]} 28... Rd4 {[%clk 0:01:11]} 29. Qc1 {[%clk
0:00:35.9]} 29... Qxd5 {[%clk 0:01:06.1]} 30. f3 {[%clk 0:00:32.7]} 30... Nd2
{[%clk 0:01:01]} 31. Qxc3 {[%clk 0:00:30.9]} 31... Rc4 {[%clk 0:00:53.6]} 32.
Qe3 {[%clk 0:00:27.6]} 32... Rc5 {[%clk 0:00:43.4]} 33. Rad1 {[%clk 0:00:23.8]}
33... Rb2 {[%clk 0:00:31.5]} 34. Re2 {[%clk 0:00:19.8]} 34... Rcc2 {[%clk
0:00:12.4]} 35. Qe8+ {[%clk 0:00:13]} 35... Kh7 {[%clk 0:00:10.7]} 36. Rde1
{[%clk 0:00:08.8]} 36... Nxf3+ {[%clk 0:00:08.3]} 37. gxf3 {[%clk 0:00:07.5]}
37... Qxf3 {[%clk 0:00:07.2]} 38. Rxc2 {[%clk 0:00:05.3]} 38... Rxc2 {[%clk
0:00:04.9]} 39. Re2 {[%clk 0:00:01.7]} 1-0

[Event "Betsys MČR v online bleskovém šachu 2021"]
[Site "Chess.com"]
[Date "2021.04.17"]
[Round "3"]
[White "Zavurka1975"]
[Black "TheRigos"]
[Result "0-1"]
[WhiteElo "2210"]
[BlackElo "2542"]
[TimeControl "180+1"]
[EndTime "9:27:39 PDT"]
[Termination "Uživatel TheRigos zvítězil na čas"]

1. d4 {[%clk 0:03:00.9]} 1... Nf6 {[%clk 0:02:59.4]} 2. Nf3 {[%clk 0:03:00.8]}
2... g6 {[%clk 0:02:58.6]} 3. Bf4 {[%clk 0:02:59.8]} 3... Bg7 {[%clk 0:02:59.1]}
4. e3 {[%clk 0:02:59.9]} 4... O-O {[%clk 0:03:00]} 5. h3 {[%clk 0:03:00]} 5...
d6 {[%clk 0:03:00.9]} 6. Be2 {[%clk 0:03:00.1]} 6... c5 {[%clk 0:02:58.6]} 7. c3
{[%clk 0:02:59]} 7... b6 {[%clk 0:02:52.7]} 8. O-O {[%clk 0:02:58.5]} 8... Bb7
{[%clk 0:02:53.2]} 9. a4 {[%clk 0:02:58.4]} 9... a6 {[%clk 0:02:50.2]} 10. Qb3
{[%clk 0:02:57.8]} 10... Nbd7 {[%clk 0:02:48.5]} 11. Rd1 {[%clk 0:02:57.2]}
11... Ra7 {[%clk 0:02:36.1]} 12. d5 {[%clk 0:02:56.3]} 12... Nh5 {[%clk
0:02:26.3]} 13. Bh2 {[%clk 0:02:55.3]} 13... Ne5 {[%clk 0:02:10.8]} 14. Nxe5
{[%clk 0:02:50.7]} 14... dxe5 {[%clk 0:02:10.6]} 15. g4 {[%clk 0:02:33.7]} 15...
Nf6 {[%clk 0:02:06.4]} 16. Bxe5 {[%clk 0:02:18.8]} 16... Ne4 {[%clk 0:01:51.1]}
17. Bxg7 {[%clk 0:02:04.4]} 17... Kxg7 {[%clk 0:01:52]} 18. c4 {[%clk
0:01:53.1]} 18... f5 {[%clk 0:01:44.8]} 19. Nc3 {[%clk 0:01:46]} 19... Nd6
{[%clk 0:01:34.7]} 20. Qc2 {[%clk 0:01:26.2]} 20... Bc8 {[%clk 0:01:33.1]} 21.
g5 {[%clk 0:01:03.4]} 21... e5 {[%clk 0:01:26.3]} 22. f4 {[%clk 0:00:59.9]}
22... Re7 {[%clk 0:01:17.3]} 23. Bf1 {[%clk 0:00:58.5]} 23... Rfe8 {[%clk
0:01:13.7]} 24. Bg2 {[%clk 0:00:56.3]} 24... h6 {[%clk 0:01:08]} 25. h4 {[%clk
0:00:55.3]} 25... hxg5 {[%clk 0:01:08.2]} 26. hxg5 {[%clk 0:00:54.7]} 26... exf4
{[%clk 0:01:09.1]} 27. exf4 {[%clk 0:00:54.1]} 27... Re3 {[%clk 0:01:08.4]} 28.
Qd2 {[%clk 0:00:41.8]} 28... Nxc4 {[%clk 0:01:06.1]} 29. Qf2 {[%clk 0:00:40.3]}
29... Nd6 {[%clk 0:00:55.2]} 30. Re1 {[%clk 0:00:37.5]} 30... Qe7 {[%clk
0:00:52.7]} 31. Rxe3 {[%clk 0:00:36.4]} 31... Qxe3 {[%clk 0:00:53.6]} 32. Qxe3
{[%clk 0:00:34.1]} 32... Rxe3 {[%clk 0:00:54.5]} 33. Kf2 {[%clk 0:00:31.5]}
33... Rd3 {[%clk 0:00:54.9]} 34. Rd1 {[%clk 0:00:23.5]} 34... Rxd1 {[%clk
0:00:43.2]} 35. Nxd1 {[%clk 0:00:23.3]} 35... Bd7 {[%clk 0:00:43.2]} 36. Nc3
{[%clk 0:00:22.8]} 36... Nc4 {[%clk 0:00:40.9]} 37. Bf1 {[%clk 0:00:13.3]} 37...
Nxb2 {[%clk 0:00:37.9]} 38. Bxa6 {[%clk 0:00:13.1]} 38... Nxa4 {[%clk
0:00:38.3]} 39. Nxa4 {[%clk 0:00:08.3]} 39... Bxa4 {[%clk 0:00:37.9]} 40. d6
{[%clk 0:00:07.4]} 40... Kf7 {[%clk 0:00:35.6]} 41. Bc8 {[%clk 0:00:05.1]} 41...
b5 {[%clk 0:00:18.2]} 42. Ke3 {[%clk 0:00:04.9]} 42... b4 {[%clk 0:00:17.8]} 43.
Kd2 {[%clk 0:00:04.3]} 43... c4 {[%clk 0:00:15.1]} 44. Kc1 {[%clk 0:00:03.6]}
44... c3 {[%clk 0:00:14.9]} 45. Bb7 {[%clk 0:00:01.8]} 45... Ke6 {[%clk
0:00:14.6]} 0-1

[Event "Betsys MČR v online bleskovém šachu 2021"]
[Site "Chess.com"]
[Date "2021.04.17"]
[Round "3"]
[White "VojtaT"]
[Black "Johanna94"]
[Result "1/2-1/2"]
[WhiteElo "1737"]
[BlackElo "2073"]
[TimeControl "180+1"]
[EndTime "9:27:40 PDT"]
[Termination "Remíza opakováním pozice"]

1. e4 {[%clk 0:03:00.9]} 1... c6 {[%clk 0:03:00]} 2. d4 {[%clk 0:03:00]} 2... d5
{[%clk 0:02:59.9]} 3. f3 {[%clk 0:02:59.8]} 3... dxe4 {[%clk 0:02:49.7]} 4. fxe4
{[%clk 0:03:00.7]} 4... e5 {[%clk 0:02:46.1]} 5. Nf3 {[%clk 0:03:00.7]} 5...
exd4 {[%clk 0:02:44.6]} 6. Bc4 {[%clk 0:02:55.3]} 6... Bb4+ {[%clk 0:02:12.8]}
7. c3 {[%clk 0:02:44.5]} 7... dxc3 {[%clk 0:02:04.1]} 8. Qxd8+ {[%clk
0:02:43.9]} 8... Kxd8 {[%clk 0:02:04.1]} 9. bxc3 {[%clk 0:02:43.6]} 9... Bc5
{[%clk 0:01:37.4]} 10. Bxf7 {[%clk 0:02:42.8]} 10... Ke7 {[%clk 0:01:34.4]} 11.
Bb3 {[%clk 0:02:39.7]} 11... Nf6 {[%clk 0:01:27.3]} 12. Bg5 {[%clk 0:02:12.7]}
12... h6 {[%clk 0:01:27]} 13. Bxf6+ {[%clk 0:01:59.4]} 13... gxf6 {[%clk
0:01:26.9]} 14. Nbd2 {[%clk 0:01:55.9]} 14... Nd7 {[%clk 0:01:08.7]} 15. Nh4
{[%clk 0:01:52.5]} 15... Ne5 {[%clk 0:01:07]} 16. Ndf3 {[%clk 0:01:47.4]} 16...
Rd8 {[%clk 0:00:57.5]} 17. Ke2 {[%clk 0:01:35.1]} 17... Nxf3 {[%clk 0:00:52.4]}
18. gxf3 {[%clk 0:01:27]} 18... Be6 {[%clk 0:00:33.8]} 19. Rhd1 {[%clk 0:01:13]}
19... Rxd1 {[%clk 0:00:25.6]} 20. Rxd1 {[%clk 0:01:11.2]} 20... Bd6 {[%clk
0:00:21.2]} 21. Ke3 {[%clk 0:01:04.6]} 21... Bxh2 {[%clk 0:00:19]} 22. Rh1
{[%clk 0:00:59]} 22... Bd6 {[%clk 0:00:17]} 23. Rd1 {[%clk 0:00:57.5]} 23...
Bc5+ {[%clk 0:00:17.1]} 24. Ke2 {[%clk 0:00:55.7]} 24... a6 {[%clk 0:00:15.8]}
25. Ng6+ {[%clk 0:00:53]} 25... Kf7 {[%clk 0:00:15.5]} 26. Nf4 {[%clk
0:00:52.6]} 26... Bxb3 {[%clk 0:00:15.3]} 27. axb3 {[%clk 0:00:53.5]} 27... Re8
{[%clk 0:00:15.1]} 28. Nd3 {[%clk 0:00:49]} 28... Re7 {[%clk 0:00:15.6]} 29.
Nxc5 {[%clk 0:00:48.9]} 29... Re5 {[%clk 0:00:14.5]} 30. Nd3 {[%clk 0:00:48.6]}
30... Rb5 {[%clk 0:00:14.3]} 31. b4 {[%clk 0:00:47.8]} 31... Rh5 {[%clk
0:00:14.9]} 32. Rf1 {[%clk 0:00:46.2]} 32... b6 {[%clk 0:00:15.3]} 33. Ke3
{[%clk 0:00:45.1]} 33... Ke6 {[%clk 0:00:15.7]} 34. f4 {[%clk 0:00:45.2]} 34...
Rh3+ {[%clk 0:00:15.3]} 35. Kd4 {[%clk 0:00:45.1]} 35... Kd6 {[%clk 0:00:14.7]}
36. Rg1 {[%clk 0:00:43.6]} 36... c5+ {[%clk 0:00:14.2]} 37. bxc5+ {[%clk
0:00:44]} 37... bxc5+ {[%clk 0:00:14.9]} 38. Nxc5 {[%clk 0:00:44.3]} 38... Rh2
{[%clk 0:00:15.6]} 39. Nxa6 {[%clk 0:00:43.3]} 39... Rd2+ {[%clk 0:00:15.6]} 40.
Ke3 {[%clk 0:00:42.6]} 40... Ra2 {[%clk 0:00:16.3]} 41. Nb4 {[%clk 0:00:42.5]}
41... Ra3 {[%clk 0:00:16.1]} 42. Kd4 {[%clk 0:00:41.2]} 42... Ra4 {[%clk
0:00:14.7]} 43. Rd1 {[%clk 0:00:38.2]} 43... Ke6 {[%clk 0:00:15]} 44. f5+ {[%clk
0:00:37.5]} 44... Kf7 {[%clk 0:00:14.8]} 45. Kc5 {[%clk 0:00:37]} 45... Ra5+
{[%clk 0:00:14.9]} 46. Kb6 {[%clk 0:00:36.5]} 46... Ra8 {[%clk 0:00:15.2]} 47.
Rd7+ {[%clk 0:00:36.1]} 47... Kg8 {[%clk 0:00:15.9]} 48. Kc6 {[%clk 0:00:35.5]}
48... h5 {[%clk 0:00:16.2]} 49. Rd3 {[%clk 0:00:33.7]} 49... Rc8+ {[%clk
0:00:16.3]} 50. Kd7 {[%clk 0:00:33.3]} 50... Rc4 {[%clk 0:00:16.2]} 51. Re3
{[%clk 0:00:30.7]} 51... Kg7 {[%clk 0:00:16.2]} 52. Nd5 {[%clk 0:00:30.7]} 52...
h4 {[%clk 0:00:15.9]} 53. Ke6 {[%clk 0:00:30.3]} 53... Rc6+ {[%clk 0:00:15.7]}
54. Kd7 {[%clk 0:00:30.1]} 54... Rc4 {[%clk 0:00:16.4]} 55. Ke6 {[%clk
0:00:24.6]} 55... Rc6+ {[%clk 0:00:15.8]} 56. Kd7 {[%clk 0:00:24.7]} 56... Rc4
{[%clk 0:00:16.1]} 1/2-1/2

[Event "Betsys MČR v online bleskovém šachu 2021"]
[Site "Chess.com"]
[Date "2021.04.17"]
[Round "3"]
[White "Pantata007"]
[Black "DiscoSTU666"]
[Result "1-0"]
[WhiteElo "2272"]
[BlackElo "1887"]
[TimeControl "180+1"]
[EndTime "9:27:41 PDT"]
[Termination "Uživatel Pantata007 zvítězil matem"]

1. d4 {[%clk 0:03:00.9]} 1... Nf6 {[%clk 0:02:58.5]} 2. c4 {[%clk 0:03:00.7]}
2... g6 {[%clk 0:02:56.8]} 3. Nc3 {[%clk 0:03:00.5]} 3... Bg7 {[%clk 0:02:55.8]}
4. e4 {[%clk 0:03:00.3]} 4... d6 {[%clk 0:02:55.7]} 5. Be2 {[%clk 0:03:00.5]}
5... O-O {[%clk 0:02:54.9]} 6. Bg5 {[%clk 0:03:00.9]} 6... h6 {[%clk 0:02:53.7]}
7. Be3 {[%clk 0:03:00.6]} 7... Nc6 {[%clk 0:02:41.3]} 8. d5 {[%clk 0:02:56.3]}
8... Nb8 {[%clk 0:02:38.1]} 9. Qd2 {[%clk 0:02:49.6]} 9... c5 {[%clk 0:02:38.5]}
10. Bxh6 {[%clk 0:02:47.7]} 10... Na6 {[%clk 0:02:20.6]} 11. h4 {[%clk 0:02:21]}
11... Nc7 {[%clk 0:02:11.6]} 12. h5 {[%clk 0:02:15.6]} 12... a6 {[%clk
0:02:12.5]} 13. hxg6 {[%clk 0:02:13]} 13... fxg6 {[%clk 0:02:11.6]} 14. Bxg7
{[%clk 0:01:52.9]} 14... Kxg7 {[%clk 0:02:12.5]} 15. Qh6+ {[%clk 0:01:49.4]}
15... Kf7 {[%clk 0:02:12.6]} 16. Nf3 {[%clk 0:01:47.9]} 16... Rg8 {[%clk
0:01:45.4]} 17. e5 {[%clk 0:01:37.2]} 17... Ng4 {[%clk 0:01:33.2]} 18. e6+
{[%clk 0:01:15.5]} 18... Bxe6 {[%clk 0:01:15]} 19. dxe6+ {[%clk 0:00:46.1]}
19... Nxe6 {[%clk 0:01:15.9]} 20. Ng5+ {[%clk 0:00:39.1]} 20... Nxg5 {[%clk
0:01:02.7]} 21. Qxg5 {[%clk 0:00:38.3]} 21... Ne5 {[%clk 0:01:03.6]} 22. f4
{[%clk 0:00:27.2]} 22... Nd7 {[%clk 0:00:53.7]} 23. Bg4 {[%clk 0:00:27.5]} 23...
Nf6 {[%clk 0:00:50.9]} 24. O-O-O {[%clk 0:00:20.4]} 24... b5 {[%clk 0:00:43.2]}
25. Rhe1 {[%clk 0:00:12.9]} 25... Kf8 {[%clk 0:00:39.2]} 26. Be6 {[%clk
0:00:11.9]} 26... Rg7 {[%clk 0:00:36.5]} 27. cxb5 {[%clk 0:00:05.5]} 27... axb5
{[%clk 0:00:35.5]} 28. Nxb5 {[%clk 0:00:05.8]} 28... Ra3 {[%clk 0:00:35.4]} 29.
Nxa3 {[%clk 0:00:04.9]} 29... Qa5 {[%clk 0:00:32]} 30. Kb1 {[%clk 0:00:04.7]}
30... Qb4 {[%clk 0:00:31.8]} 31. Nc2 {[%clk 0:00:03.9]} 31... Qb6 {[%clk
0:00:30.9]} 32. g3 {[%clk 0:00:02.6]} 32... Qb4 {[%clk 0:00:30.9]} 33. Qh4
{[%clk 0:00:02.9]} 33... Qb6 {[%clk 0:00:27.5]} 34. Qh8+ {[%clk 0:00:03.3]}
34... Ng8 {[%clk 0:00:27]} 35. Bxg8 {[%clk 0:00:03.5]} 35... Rxg8 {[%clk
0:00:26.9]} 36. Qh6+ {[%clk 0:00:04]} 36... Rg7 {[%clk 0:00:26.8]} 37. Qg5
{[%clk 0:00:04.3]} 37... Qb7 {[%clk 0:00:24.2]} 38. f5 {[%clk 0:00:04.2]} 38...
c4 {[%clk 0:00:22.4]} 39. fxg6 {[%clk 0:00:04]} 39... c3 {[%clk 0:00:22.2]} 40.
Qf4+ {[%clk 0:00:04.2]} 40... Kg8 {[%clk 0:00:20.4]} 41. b3 {[%clk 0:00:04.5]}
41... Qg2 {[%clk 0:00:14]} 42. Qc4+ {[%clk 0:00:04.3]} 42... Kf8 {[%clk
0:00:12.9]} 43. Qxc3 {[%clk 0:00:05.2]} 43... e5 {[%clk 0:00:08.2]} 44. Rf1+
{[%clk 0:00:06.1]} 44... Ke7 {[%clk 0:00:07.9]} 45. Qc7+ {[%clk 0:00:06.2]}
45... Ke6 {[%clk 0:00:07.4]} 46. Qxd6# {[%clk 0:00:06.5]} 1-0